Workbook

Sheet Mittelhilfstabelle
A2: Stunde | B2: Wind | C2: Luftfeuchtigkeit | D2: Luftdruck | E2: Taupunkttemperatur | F2: Bewölkung | H2: Stunde | I2: Wind | J2: Luftfeuchtigkeit | K2: Luftdruck | L2: Taupunkttemperatur | M2: Bewölkung
A3: 00 | B3: 1 | C3: 91 | D3: 1021.3 | E3: 8.8 | F3: 6 | H3: 00 | I3: 2 | J3: 75 | K3: 1019.4 | L3: 6.4 | M3: 2
A4: 01 | B4: 1 | C4: 93 | D4: 1021.3 | E4: 8.3 | F4: 2 | H4: 01 | I4: 1 | J4: 79 | K4: 1019.3 | L4: 6.5 | M4: 3
A5: 02 | B5: 0 | C5: 93 | D5: 1021.1 | E5: 7.5 | F5: 2 | H5: 02 | I5: 2 | J5: 80 | K5: 1019.1 | L5: 6.7 | M5: 3
A6: 03 | B6: 0 | C6: 94 | D6: 1020.8 | E6: 7.1 | F6: 2 | H6: 03 | I6: 2 | J6: 82 | K6: 1019.1 | L6: 6.6 | M6: 4
A7: 04 | B7: 1 | C7: 94 | D7: 1020.8 | E7: 6.7 | F7: 2 | H7: 04 | I7: 2 | J7: 86 | K7: 1019.3 | L7: 6.8 | M7: 5
A8: 05 | B8: 1 | C8: 96 | D8: 1020.7 | E8: 7.5 | F8: 1 | H8: 05 | I8: 2 | J8: 86 | K8: 1019.8 | L8: 7.2 | M8: 6
A9: 06 | B9: 1 | C9: 95 | D9: 1020.9 | E9: 10.1 | F9: 1 | H9: 06 | I9: 1 | J9: 82 | K9: 1020.1 | L9: 7.6 | M9: 6
A10: 07 | B10: 1 | C10: 85 | D10: 1021 | E10: 10.6 | F10: 0 | H10: 07 | I10: 1 | J10: 79 | K10: 1020.2 | L10: 7.4 | M10: 4
A11: 08 | B11: 1 | C11: 71 | D11: 1020.9 | E11: 10.4 | F11: 0 | H11: 08
A12: 09 | B12: 2 | C12: 64 | D12: 1020.8 | E12: 9.8 | F12: 1 | H12: 09
A13: 10 | B13: 2 | C13: 55 | D13: 1020.7 | E13: 8.6 | F13: 2 | H13: 10
A14: 11 | B14: 2 | C14: 57 | D14: 1020.5 | E14: 9.4 | F14: 2 | H14: 11
A15: 12 | B15: 2 | C15: 54 | D15: 1020 | E15: 9.5 | F15: 3 | H15: 12
A16: 13 | B16: 2 | C16: 53 | D16: 1019.7 | E16: 8.9 | F16: 4 | H16: 13
A17: 14 | B17: 2 | C17: 54 | D17: 1019.4 | E17: 9.4 | F17: 4 | H17: 14
A18: 15 | B18: 2 | C18: 55 | D18: 1019.1 | E18: 10.7 | F18: 4 | H18: 15
A19: 16 | B19: 2 | C19: 50 | D19: 1018.9 | E19: 8.7 | F19: 4 | H19: 16
A20: 17 | B20: 2 | C20: 46 | D20: 1018.8 | E20: 7.1 | F20: 3 | H20: 17
A21: 18 | B21: 2 | C21: 43 | D21: 1018.8 | E21: 5.7 | F21: 2 | H21: 18
A22: 19 | B22: 1 | C22: 51 | D22: 1018.8 | E22: 7.2 | F22: 1 | H22: 19
A23: 20 | B23: 2 | C23: 56 | D23: 1019 | E23: 6.7 | F23: 1 | H23: 20
A24: 21 | B24: 2 | C24: 59 | D24: 1019.3 | E24: 5.7 | F24: 1 | H24: 21
A25: 22 | B25: 2 | C25: 62 | D25: 1019.5 | E25: 5.6 | F25: 1 | H25: 22
A26: 23 | B26: 1 | C26: 69 | D26: 1019.6 | E26: 6 | F26: 1 | H26: 23
A27: Mittel | B27: =ROUND(AVERAGE(B3:B26),1) -> 1.5 | C27: =ROUND(AVERAGE(C3:C26),1) -> 68.3 | D27: =ROUND(AVERAGE(D3:D26),1) -> 1020.1 | E27: =AVERAGE(E3:E26) -> 8.166666667 | F27: =ROUND(AVERAGE(F3:F26),1) -> 2.1 | H27: Mittel | I27: =ROUND(AVERAGE(I3:I26),1) -> 1.6 | J27: =ROUND(AVERAGE(J3:J26),1) -> 81.1 | K27: =ROUND(AVERAGE(K3:K26),1) -> 1019.5 | L27: =AVERAGE(L3:L26) -> 6.9 | M27: =ROUND(AVERAGE(M3:M26),1) -> 4.1
E29: 2014-05-31 | L29: 2014-06-01
A32: Stunde | B32: Wind | C32: Luftfeuchtigkeit | D32: Luftdruck | E32: Taupunkttemperatur | F32: Bewölkung | H32: Stunde | I32: Wind | J32: Luftfeuchtigkeit | K32: Luftdruck | L32: Taupunkttemperatur | M32: Bewölkung
A33: 00 | B33: 1 | C33: 98 | D33: 1012.3 | E33: 10.4 | F33: 8 | H33: 00 | I33: 1 | J33: 94 | K33: 1019.5 | L33: 6.8 | M33: 8
A34: 01 | B34: 1 | C34: 97 | D34: 1012.4 | E34: 9.5 | F34: 8 | H34: 01 | I34: 1 | J34: 94 | K34: 1019.7 | L34: 6.8 | M34: 8
A35: 02 | B35: 2 | C35: 97 | D35: 1012.5 | E35: 9.2 | F35: 8 | H35: 02 | I35: 1 | J35: 95 | K35: 1019.7 | L35: 6.8 | M35: 8
A36: 03 | B36: 2 | C36: 97 | D36: 1012.5 | E36: 8.7 | F36: 8 | H36: 03 | I36: 1 | J36: 96 | K36: 1019.6 | L36: 6.8 | M36: 8
A37: 04 | B37: 1 | C37: 97 | D37: 1012.9 | E37: 8.4 | F37: 8 | H37: 04 | I37: 1 | J37: 96 | K37: 1019.8 | L37: 7 | M37: 8
A38: 05 | B38: 1 | C38: 97 | D38: 1013.3 | E38: 8 | F38: 8 | H38: 05 | I38: 1 | J38: 97 | K38: 1020.2 | L38: 7.1 | M38: 8
A39: 06 | B39: 1 | C39: 97 | D39: 1013.7 | E39: 7.8 | F39: 8 | H39: 06 | I39: 1 | J39: 97 | K39: 1020.4 | L39: 7.2 | M39: 7
A40: 07 | B40: 2 | C40: 97 | D40: 1014 | E40: 7.7 | F40: 8 | H40: 07 | I40: 1 | J40: 96 | K40: 1020.7 | L40: 8.1 | M40: 7
A41: 08 | B41: 2 | C41: 97 | D41: 1014.4 | E41: 7.5 | F41: 8 | H41: 08 | I41: 1 | J41: 89 | K41: 1021 | L41: 8.3 | M41: 6
A42: 09 | B42: 1 | C42: 96 | D42: 1014.8 | E42: 7.2 | F42: 8 | H42: 09 | I42: 1 | J42: 80 | K42: 1020.9 | L42: 8.8 | M42: 5
A43: 10 | B43: 1 | C43: 96 | D43: 1015.3 | E43: 7.2 | F43: 8 | H43: 10 | I43: 1 | J43: 76 | K43: 1020.8 | L43: 9.3 | M43: 4
A44: 11 | B44: 1 | C44: 95 | D44: 1015.7 | E44: 7 | F44: 8 | H44: 11 | I44: 2 | J44: 75 | K44: 1020.7 | L44: 10.4 | M44: 5
A45: 12 | B45: 2 | C45: 95 | D45: 1016.2 | E45: 7.5 | F45: 8 | H45: 12 | I45: 1 | J45: 71 | K45: 1020.7 | L45: 8.4 | M45: 6
A46: 13 | B46: 2 | C46: 95 | D46: 1016.5 | E46: 7.3 | F46: 8 | H46: 13 | I46: 2 | J46: 64 | K46: 1020.6 | L46: 9 | M46: 6
A47: 14 | B47: 2 | C47: 95 | D47: 1016.7 | E47: 7.2 | F47: 8 | H47: 14 | I47: 2 | J47: 69 | K47: 1020.4 | L47: 9.2 | M47: 6
A48: 15 | B48: 1 | C48: 94 | D48: 1017 | E48: 7.4 | F48: 8 | H48: 15 | I48: 2 | J48: 67 | K48: 1020.2 | L48: 9.7 | M48: 5
A49: 16 | B49: 1 | C49: 93 | D49: 1017.1 | E49: 7.6 | F49: 8 | H49: 16 | I49: 2 | J49: 66 | K49: 1020.3 | L49: 9.2 | M49: 7
A50: 17 | B50: 1 | C50: 92 | D50: 1017.3 | E50: 7.3 | F50: 8 | H50: 17 | I50: 2 | J50: 91 | K50: 1020.4 | L50: 9.6 | M50: 6
A51: 18 | B51: 1 | C51: 89 | D51: 1017.5 | E51: 7.1 | F51: 8 | H51: 18 | I51: 2 | J51: 91 | K51: 1020.6 | L51: 9.6 | M51: 5
A52: 19 | B52: 1 | C52: 90 | D52: 1017.9 | E52: 7.2 | F52: 8 | H52: 19 | I52: 2 | J52: 90 | K52: 1020.5 | L52: 9.5 | M52: 6
A53: 20 | B53: 1 | C53: 91 | D53: 1018.3 | E53: 7 | F53: 8 | H53: 20 | I53: 1 | J53: 93 | K53: 1021 | L53: 8.8 | M53: 7
A54: 21 | B54: 1 | C54: 91 | D54: 1018.9 | E54: 6.8 | F54: 8 | H54: 21 | I54: 1 | J54: 94 | K54: 1021.4 | L54: 8.3 | M54: 7
A55: 22 | B55: 1 | C55: 93 | D55: 1019.2 | E55: 7 | F55: 8 | H55: 22 | I55: 2 | J55: 96 | K55: 1021.3 | L55: 8.6 | M55: 7
A56: 23 | B56: 1 | C56: 93 | D56: 1019.4 | E56: 6.8 | F56: 8 | H56: 23 | I56: 2 | J56: 92 | K56: 1021.4 | L56: 8.8 | M56: 7
A57: Mittel | B57: =ROUND(AVERAGE(B33:B56),1) -> 1.3 | C57: =ROUND(AVERAGE(C33:C56),1) -> 94.7 | D57: =ROUND(AVERAGE(D33:D56),1) -> 1015.7 | E57: =ROUND(AVERAGE(E33:E56),1) -> 7.7 | F57: =ROUND(AVERAGE(F33:F56),1) -> 8 | H57: Mittel | I57: =ROUND(AVERAGE(I33:I56),1) -> 1.4 | J57: =ROUND(AVERAGE(J33:J56),1) -> 86.2 | K57: =ROUND(AVERAGE(K33:K56),1) -> 1020.5 | L57: =ROUND(AVERAGE(L33:L56),1) -> 8.4 | M57: =ROUND(AVERAGE(M33:M56),1) -> 6.5
E59: 2014-05-29 | L59: 2014-05-30

Sheet Kurztabelle
A2: Wetterwarte: Köttewitz | L2: Monat: | M2: Mai | R2: Jahr: | U2: 2014
A4: Dat. | B4: TTT | C4: TxTx | D4: TnTn | E4: Tg | F4: Umin. | G4: UU | H4: NN | I4: RRRR | J4: Art | L4: sss | M4: PPPP | N4: eee | O4: fff | R4: Tage mit | V4: fk | W4: Summe
J5: * | O5: Bft | P5: SS | Q5: Art ( D ) | R5: RR | S5: Ge | T5: Bf6 | U5: Bf8 | V5: Bft | W5: Gewitter
A6: 01. | B6: 12.1 | C6: 19.2 | D6: 6.6 | E6: 5.6 | F6: 56 | G6: 84 | H6: 5.3 | I6: 9.4 | J6: R | L6: 5.2 | M6: 1010.3 | N6: 9.3 | O6: 1 | R6: 1 | S6: 1 | T6: 1 | V6: 6 | AA6: max >=30,0°C | AB6: max >=25,0°C | AC6: max <0,0°C | AE6: RR >=0,1 mm | AF6: RR >=1,0 mm | AG6: RR >=3,0 mm | AH6: RR >=10,0 mm
A7: 02. | B7: 6.9 | C7: 10.4 | D7: 4 | E7: 4.5 | F7: 98 | G7: 98 | H7: 8 | I7: 1 | J7: R | L7: . | M7: 1014.2 | N7: 6.8 | O7: 1 | R7: 1 | V7: 3 | AA7: =COUNTIF(C6:C15,">=30") -> 0 | AB7: =COUNTIF(C6:C15,">=25") -> 0 | AC7: =COUNTIF(C6:C15,"<0") -> 0 | AE7: =COUNTIF(I6:I15,">=0,1") -> 7 | AF7: =COUNTIF(I6:I15,">=1") -> 6 | AG7: =COUNTIF(I6:I15,">=3") -> 3 | AH7: =COUNTIF(I6:I15,">=10") -> 0
A8: 03. | B8: 5.7 | C8: 8.8 | D8: 2.4 | E8: 1.1 | F8: 70 | G8: 90 | H8: 7 | I8: . | L8: 0.4 | M8: 1021.4 | N8: 4.1 | O8: 2 | V8: 4 | AA8: =COUNTIF(C18:C27,">=30") -> 0 | AB8: =COUNTIF(C18:C27,">=25") -> 1 | AC8: =COUNTIF(C18:C27,"<0") -> 0 | AE8: =COUNTIF(I18:I27,">=0,1") -> 9 | AF8: =COUNTIF(I18:I27,">=1") -> 5 | AG8: =COUNTIF(I18:I27,">=3") -> 2 | AH8: =COUNTIF(I18:I27,">=10") -> 1
A9: 04. | B9: 6 | C9: 11.3 | D9: 0.9 | E9: 0 | F9: 56 | G9: 78 | H9: 4.7 | I9: . | L9: 4.6 | M9: 1022.5 | N9: 2.4 | O9: 2 | V9: 5 | AA9: =COUNTIF(C30:C40,">=30") -> 0 | AB9: =COUNTIF(C30:C40,">=25") -> 3 | AC9: =COUNTIF(C30:C40,"<0") -> 0 | AE9: =COUNTIF(I30:I40,">=0,1") -> 6 | AF9: =COUNTIF(I30:I40,">=1") -> 6 | AG9: =COUNTIF(I30:I40,">=3") -> 4 | AH9: =COUNTIF(I30:I40,">=10") -> 2
A10: 05. | B10: 7.2 | C10: 13.9 | D10: -0.1 | E10: -0.6 | F10: 54 | G10: 78 | H10: 5.4 | I10: . | L10: 3.7 | M10: 1020.1 | N10: 3.2 | O10: 1 | V10: 3
A11: 06. | B11: 13.2 | C11: 18.9 | D11: 3 | E11: 2.2 | F11: 46 | G11: 69 | H11: 5.8 | I11: 0.5 | J11: R | L11: 6.2 | M11: 1014 | N11: 6.8 | O11: 2 | R11: 1 | S11: 1 | V11: 5 | AA11: min <0,0°C | AB11: min <0-10,0°C | AE11: rel.Lf. 14h >=70% | AG11: rel.Lf. 14h <=40%
A12: 07. | B12: 13.4 | C12: 17.3 | D12: 7.1 | E12: 6.1 | F12: 63 | G12: 79 | H12: 6.1 | I12: 4.4 | J12: R | L12: 1.3 | M12: 1010.4 | N12: 9.9 | O12: 2 | R12: 1 | T12: 1 | V12: 6 | AA12: =COUNTIF(D6:D15,"<0") -> 1 | AB12: =COUNTIF(D6:D15,"<=-10") -> 0 | AE12: =COUNTIF(F6:F15,">=70") -> 2 | AG12: =COUNTIF(F6:F15,"<=40") -> 1
A13: 08. | B13: 13.4 | C13: 18.7 | D13: 6.8 | E13: 5.6 | F13: 46 | G13: 71 | H13: 5.8 | I13: 2.2 | J13: R | L13: 5.2 | M13: 1013.4 | N13: 7.7 | O13: 2 | R13: 1 | T13: 1 | V13: 6 | AA13: =COUNTIF(D18:D27,"<0") -> 0 | AB13: =COUNTIF(D18:D27,"<=-10") -> 0 | AE13: =COUNTIF(F18:F27,">=70") -> 3 | AG13: =COUNTIF(F18:F27,"<=40") -> 0
A14: 09. | B14: 15.3 | C14: 20.7 | D14: 11.5 | E14: 11.1 | F14: 49 | G14: 71 | H14: 6.8 | I14: 3.9 | J14: R | L14: 3.3 | M14: 1010.7 | N14: 10.1 | O14: 3 | R14: 1 | S14: 1 | T14: 1 | V14: 7 | AA14: =COUNTIF(D30:D40,"<0") -> 0 | AB14: =COUNTIF(D30:D40,"<=-10") -> 0 | AE14: =COUNTIF(F30:F40,">=70") -> 3 | AG14: =COUNTIF(F30:F40,"<=40") -> 1
A15: 10. | B15: 13.1 | C15: 19.1 | D15: 7.9 | E15: 6.7 | F15: 40 | G15: 71 | H15: 5.5 | I15: 2.3 | J15: R | L15: 7.6 | M15: 1012 | N15: 7.4 | O15: 2 | R15: 1 | V15: 5
A16: Su | B16: =SUM(B6:B15) -> 106.3 | C16: =SUM(C6:C15) -> 158.3 | D16: 50.1 | E16: 42.3 | F16: XXX | G16: XXX | H16: =SUM(H6:H15) -> 60.4 | I16: =SUM(I6:I15) -> 23.7 | J16: XX | L16: =SUM(L6:L15) -> 37.5 | M16: =SUM(M6:M15) -> 10149 | N16: 67.7 | O16: 18 | P16: =SUM(P6:P15) -> 0 | Q16: X | R16: =SUM(R6:R15) -> 7 | S16: =SUM(S6:S15) -> 3 | T16: 4 | U16: 0 | V16: XXX | AA16: ohne Sonne | AB16: Son. 0,1-0,9 | AC16: Son. >=10,0 | AE16: Sch. >=1 cm | AF16: Sch. >=3 cm | AG16: Sch. >=10 cm
A17: Mi | B17: =AVERAGE(B6:B15) -> 10.63 | C17: =AVERAGE(C6:C15) -> 15.83 | D17: 5.01 | E17: 4.23 | F17: XXX | G17: 78.9 | H17: 6.04 | I17: =I16/10 -> 2.37 | J17: XX | L17: =L16/10 -> 3.75 | M17: =AVERAGE(M6:M15) -> 1014.9 | N17: =AVERAGE(N6:N15) -> 6.77 | O17: 1.8 | P17: =ROUND(AVERAGE(P6:P15),1) ->  | Q17: X | R17: XX | S17: XX | T17: XX | U17: XX | V17: =AVERAGE(V6:V15) -> 5 | AA17: =COUNTIF(L6:L15,".") -> 1 | AB17: =COUNTIF(L6:L15,"<1") -> 1 | AC17: =COUNTIF(L6:L15,">=10") -> 0 | AE17: =COUNTIF(P6:P15,">=1") -> 0 | AF17: =COUNTIF(P6:P15,">=3") -> 0 | AG17: =COUNTIF(P6:P15,">=10") -> 0
A18: 11. | B18: 12.3 | C18: 17 | D18: 8.4 | E18: 6.7 | F18: 46 | G18: 72 | H18: 5 | I18: 0.8 | J18: R | L18: 5.7 | M18: 1005 | N18: 7.3 | O18: 2 | R18: 1 | T18: 1 | V18: 7 | AA18: =COUNTIF(L18:L27,".") -> 2 | AB18: =COUNTIF(L18:L27,"<1") -> 0 | AC18: =COUNTIF(L18:L27,">=10") -> 1 | AE18: =COUNTIF(P18:P27,">=1") -> 0 | AF18: =COUNTIF(P18:P27,">=3") -> 0 | AG18: =COUNTIF(P18:P27,">=10") -> 0
A19: 12. | B19: 11.6 | C19: 16.2 | D19: 8.5 | E19: 7.2 | F19: 45 | G19: 66 | H19: 5.4 | I19: 0.8 | J19: R | L19: 4.3 | M19: 1009 | N19: 5.3 | O19: 2 | R19: 1 | T19: 1 | V19: 6 | AA19: =COUNTIF(L30:L40,".") -> 2 | AB19: =COUNTIF(L30:L40,"<1") -> 0 | AC19: =COUNTIF(L30:L40,">=10") -> 4 | AE19: =COUNTIF(P30:P40,">=1") -> 0 | AF19: =COUNTIF(P30:P40,">=3") -> 0 | AG19: =COUNTIF(P30:P40,">=10") -> 0
A20: 13. | B20: 10.1 | C20: 14.3 | D20: 7.4 | E20: 6.7 | F20: 63 | G20: 80 | H20: 6.6 | I20: 1.8 | J20: R | L20: 2.3 | M20: 1013.5 | N20: 6.7 | O20: 2 | R20: 1 | V20: 5
A21: 14. | B21: 8.9 | C21: 11.9 | D21: 6.7 | E21: 6.1 | F21: 64 | G21: 79 | H21: 6.4 | I21: 1 | J21: R | L21: 2.9 | M21: 1023 | N21: 5.5 | O21: 2 | R21: 1 | T21: 1 | V21: 6 | AA21: Max TT | AB21: Max TxTx | AC21: Min TgTg | AE21: Max RR
A22: 15. | B22: 9.3 | C22: 13.2 | D22: 6.4 | E22: 6.1 | F22: 76 | G22: 85 | H22: 6.9 | I22: 1 | J22: R | L22: 1 | M22: 1028.9 | N22: 6.8 | O22: 2 | R22: 1 | V22: 4 | AA22: =MAX(B6:B15,B18:B27,B30:B40) -> 21.6 | AB22: =MAX(C6:C15,C18:C27,C30:C40) -> 27.9 | AC22: =MIN(E6:E15,E18:E27,E30:E40) -> -0.6 | AE22: =MAX(I6:I15,I18:I27,I30:I40) -> 20.1
A23: 16. | B23: 11.5 | C23: 16.3 | D23: 5.8 | E23: 5.6 | F23: 50 | G23: 71 | H23: 6.8 | I23: 0.1 | J23: R | L23: 2 | M23: 1025.8 | N23: 6.1 | O23: 2 | R23: 1 | T23: 1 | V23: 6 | AA23: Min TT | AB23: Min TnTn | AC23: Min U14 | AE23: Max SS
A24: 17. | B24: 10.9 | C24: 14.9 | D24: 9.1 | E24: 8.9 | F24: 73 | G24: 84 | H24: 7.6 | I24: 14.9 | J24: R | L24: . | M24: 1018.7 | N24: 8.3 | O24: 2 | R24: 1 | V24: 5 | AA24: =MIN(B6:B15,B18:B27,B30:B40) -> 5.7 | AB24: =MIN(D6:D15,D18:D27,D30:D40) -> -0.1 | AC24: =MIN(F6:F15,F18:F27,F30:F40) -> 39 | AE24: =MAX(P6:P15,P18:P27,P30:P40) -> 0
A25: 18. | B25: 9.8 | C25: 11.5 | D25: 8.3 | E25: 8.3 | F25: 86 | G25: 93 | H25: 8 | I25: 3.4 | J25: R | L25: . | M25: 1013.2 | N25: 8.8 | O25: 1 | R25: 1 | V25: 4
A26: 19. | B26: 14.4 | C26: 22.2 | D26: 9.3 | E26: 8.9 | F26: 55 | G26: 84 | H26: 5.5 | I26: 0.3 | J26: R | L26: 4.1 | M26: 1011.8 | N26: 11.5 | O26: 2 | R26: 1 | S26: 1 | V26: 5
A27: 20. | B27: 19.1 | C27: 27.5 | D27: 11 | E27: 9.4 | F27: 41 | G27: 74 | H27: 1.2 | I27: . | L27: 12 | M27: 1014.1 | N27: 13.7 | O27: 1 | V27: 4
A28: Su | B28: =SUM(B18:B27) -> 117.9 | C28: =SUM(C18:C27) -> 165 | D28: 80.9 | E28: 73.9 | F28: XXX | G28: XXX | H28: =SUM(H18:H27) -> 59.4 | I28: =SUM(I18:I27) -> 24.1 | J28: XX | L28: =SUM(L18:L27) -> 34.3 | M28: =SUM(M18:M27) -> 10163 | N28: 80 | O28: 18 | P28: =SUM(P18:P27) -> 0 | Q28: X | R28: =SUM(R18:R27) -> 9 | S28: =SUM(S18:S27) -> 1 | T28: 4 | U28: 0 | V28: XXX
A29: Mi | B29: =AVERAGE(B18:B27) -> 11.79 | C29: =AVERAGE(C18:C27) -> 16.5 | D29: 8.09 | E29: 7.39 | F29: 59.9 | G29: 78.8 | H29: 5.94 | I29: =I28/10 -> 2.41 | J29: XX | L29: =L28/10 -> 3.43 | M29: =AVERAGE(M18:M27) -> 1016.3 | N29: =AVERAGE(N18:N27) -> 8 | O29: 1.8 | P29: =ROUND(AVERAGE(P18:P27),1) ->  | Q29: X | R29: XX | S29: XX | T29: XX | U29: XX | V29: =AVERAGE(V18:V27) -> 5.2
A30: 21. | B30: 19.5 | C30: 26.6 | D30: 10.7 | E30: 10 | F30: 39 | G30: 67 | H30: 4.3 | I30: . | L30: 12.8 | M30: 1014.8 | N30: 12.7 | O30: 1 | V30: 4
A31: 22. | B31: 21.6 | C31: 27.9 | D31: 14.3 | E31: 11.7 | F31: 50 | G31: 69 | H31: 2.7 | I31: . | L31: 12.9 | M31: 1009.7 | N31: 15.5 | O31: 2 | V31: 5
A32: 23. | B32: 19.1 | C32: 27.5 | D32: 15.2 | E32: 14.4 | F32: 57 | G32: 82 | H32: 3.7 | I32: 2.5 | J32: R | L32: 8.7 | M32: 1008.9 | N32: 15.9 | O32: 1 | R32: 1 | S32: 1 | V32: 5 | W32: 2
A33: 24. | B33: 15 | C33: 20.7 | D33: 9.9 | E33: 9.4 | F33: 72 | G33: 92 | H33: 6.4 | I33: 12.1 | J33: R | L33: 1.6 | M33: 1014.1 | N33: 13.8 | O33: 1 | R33: 1 | S33: 1 | T33: 1 | V33: 6
A34: 25. | B34: 16.6 | C34: 22.7 | D34: 8.9 | E34: 8.3 | F34: 44 | G34: 75 | H34: 1.8 | I34: . | L34: 13 | M34: 1020 | N34: 11.5 | O34: 1 | V34: 3
A35: 26. | B35: 17.7 | C35: 23.2 | D35: 10.9 | E35: 10.6 | F35: 53 | G35: 75 | H35: 4.4 | I35: . | L35: 9.3 | M35: 1015.9 | N35: 12.9 | O35: 2 | V35: 5
A36: 27. | B36: 17.1 | C36: 23.6 | D36: 15 | E36: 14.4 | F36: 64 | G36: 89 | H36: 7.3 | I36: 20.1 | J36: R | L36: 2.1 | M36: 1007.9 | N36: 15.2 | O36: 1 | R36: 1 | S36: 1 | V36: 4 | W36: 3
A37: 28. | B37: 13.2 | C37: 15.6 | D37: 10.7 | E37: 11.1 | F37: 96 | G37: 97 | H37: 8 | I37: 3.9 | J37: R | L37: . | M37: 1008.2 | N37: 12.9 | O37: 1 | R37: 1 | V37: 4
A38: 29. | B38: 8.4 | C38: 10.7 | D38: 7.7 | E38: 7.6 | F38: 89 | G38: 95 | H38: 8 | I38: 4 | J38: R | L38: . | M38: 1015.7 | N38: 7.7 | O38: 1 | R38: 1 | V38: 3
A39: 30. | B39: 10.8 | C39: 17.1 | D39: 7.4 | E39: 7.3 | F39: 58 | G39: 86 | H39: 6.5 | I39: 2.9 | J39: R | L39: 4.7 | M39: 1020.5 | N39: 8.4 | O39: 1 | R39: 1 | V39: 5
A40: 31. | B40: 14.5 | C40: 20.1 | D40: 7.4 | E40: 6.1 | F40: 41 | G40: 68 | H40: 2.1 | I40: . | L40: 12.9 | M40: 1020.1 | N40: 8.2 | O40: 1 | V40: 5
A41: Su | B41: =SUM(B30:B40) -> 173.5 | C41: =SUM(C30:C40) -> 235.7 | D41: =SUM(D30:D40) -> 118.1 | E41: =SUM(E30:E40) -> 110.9 | F41: XXX | G41: =SUM(G30:G40) -> 895 | H41: =SUM(H30:H40) -> 55.2 | I41: =SUM(I30:I40) -> 45.5 | J41: XX | L41: =SUM(L30:L40) -> 78 | M41: =SUM(M30:M40) -> 11155.8 | N41: =SUM(N30:N40) -> 134.7 | O41: =SUM(O30:O40) -> 13 | P41: =SUM(P30:P40) -> 0 | Q41: X | R41: =SUM(R30:R40) -> 6 | S41: =SUM(S30:S40) -> 3 | T41: =SUM(T30:T40) -> 1 | U41: =SUM(U30:U40) -> 0 | V41: XXX
A42: Mi | B42: =AVERAGE(B30:B40) -> 15.77272727 | C42: =AVERAGE(C30:C40) -> 21.42727273 | D42: =AVERAGE(D30:D40) -> 10.73636364 | E42: =AVERAGE(E30:E40) -> 10.08181818 | F42: XXX | G42: =AVERAGE(G30:G40) -> 81.36363636 | H42: =AVERAGE(H30:H40) -> 5.018181818 | I42: XXX | J42: XX | L42: XXX | M42: =AVERAGE(M30:M40) -> 1014.163636 | N42: =AVERAGE(N30:N40) -> 12.24545455 | O42: =AVERAGE(O30:O40) -> 1.181818182 | P42: =ROUND(AVERAGE(P30:P40),1) ->  | Q42: X | R42: XX | S42: XX | T42: XX | U42: XX | V42: =AVERAGE(V30:V40) -> 4.454545455
A43: MSu | B43: =SUM(B16+B28+B41) -> 397.7 | C43: =SUM(C16+C28+C41) -> 559 | D43: =SUM(D16+D28+D41) -> 249.1 | E43: =SUM(E16+E28+E41) -> 227.1 | F43: XXX | G43: XXX, | H43: =SUM(H16+H28+H41) -> 175 | I43: =SUM(I16+I28+I41) -> 93.3 | J43: XX | L43: =SUM(L16+L28+L41) -> 149.8 | M43: =SUM(M16+M28+M41) -> 31467.8 | N43: =SUM(N16+N28+N41) -> 282.4 | O43: XXX | P43: =SUM(P16+P28+P41) -> 0 | Q43: X | R43: =SUM(R16+R28+R41) -> 22 | S43: =SUM(S16+S28+S41) -> 7 | T43: =SUM(T16+T28+T41) -> 9 | U43: =SUM(U16+U28+U41) -> 0 | V43: XXX | W43: 12
A44: MMi | B44: =AVERAGE(B6:B15,B18:B27,B30:B40) -> 12.82903226 | C44: =AVERAGE(C6:C15,C18:C27,C30:C40) -> 18.03225806 | D44: =AVERAGE(D6:D15,D18:D27,D30:D40) -> 8.035483871 | E44: =AVERAGE(E6:E15,E18:E27,E30:E40) -> 7.325806452 | F44: XXX | G44: =AVERAGE(G6:G15,G18:G27,G30:G40) -> 79.74193548 | H44: =AVERAGE(H6:H15,H18:H27,H30:H40) -> 5.64516129 | I44: XXXXX | J44: XX | L44: XXXX | M44: =AVERAGE(M6:M15,M18:M27,M30:M40) -> 1015.090323 | N44: =AVERAGE(N6:N15,N18:N27,N30:N40) -> 9.109677419 | O44: =AVERAGE(O6:O15,O18:O27,O30:O40) -> 1.580645161 | P44: =ROUND(AVERAGE(P6:P15,P18:P27,P30:P40),1) ->  | Q44: X | R44: XX | S44: XX | T44: XX | U44: XX | V44: =AVERAGE(V17,V29,V42) -> 4.884848485
B46: Norm | C46: % v N.- | D46: Abw. | E46: Zahl der Tage | L46: Niederschlag mm | P46: Sonnensch.-dauer Std
B47: wert | C47: wert | D47: K | E47: Max.d.Lufttemp.°C | L47: >/= 0,1 | O47: =SUM(AE7:AE9) -> 22 | P47: ohne Sonne | V47: 5
A48: TTT | B48: 13.9 | C48: XXXX | D48: =SUM(B44-B48) -> -1.070967742 | E48: Tropentag/Hitzetag | I48: =SUM(AA7:AA9) -> 0 | L48: >/= 1,0 | O48: =SUM(AF7:AF9) -> 17 | P48: 0,1 bis 0,9 | V48: 1
A49: RRR | B49: 65 | C49: =SUM(I43*100/B49) -> 143.5384615 | D49: XXXX | E49: Sommertag | I49: =SUM(AB7:AB9) -> 4 | L49: >/= 3,0 | O49: =SUM(AG7:AG9) -> 9 | P49: >/= 10,0 | V49: =SUM(AC17:AC19) -> 5
A50: sss | B50: 217 | C50: =SUM(L43*100/B50) -> 69.03225806 | D50: XXXX | E50: Eistag | I50: =SUM(AC7:AC9) -> 0 | L50: >/=10,0 | O50: =SUM(AH7:AH9) -> 3 | P50: Schneedecke cm
A51: astr. | D51: XXXX | E51: Polartag | I51: 0 | L51: >/= 20,0 | O51: =SUM(AI7,AI9) -> 0 | P51: >/= 1 | V51: =SUM(AE17:AE19) -> 0
A52: mgl. | B52: 480 | C52: =SUM(L43*100/B52) -> 31.20833333 | D52: XXXX | E52: Min.d.Lufttemp.°C | L52: Rel. Luftfeuchte 14 Uhr | P52: >/= 3 | V52: =SUM(AF17:AF19) -> 0
A53: sss | D53: XXXX | E53: Frosttag | I53: =SUM(AA12:AA14) -> 1 | L53: >/=70% | O53: =SUM(AE12:AE14) -> 8 | P53: >/= 10 | V53: =SUM(AG17:AG19) -> 0
E54: Tropennacht | I54: 0 | L54: </=40% | O54: =SUM(AG12:AG14) -> 2
E57: Unter "Tage mit" sind die Angaben Bft 6 & Bft 8 nicht 10 min. - Mittel sonder 2,5 s - Werte.
E58: Wenn ein Wert auch mit einem 10 min. - Wert erreicht wird, erfolgt eine rote Markierung.
E59: Dies gilt rückwirkend auf November 2012.
F113: Tage mit Bft 6 /8 eigentlich in 10 min. - Mittel

Sheet Sichtst.
E1: Sichtweitenstatistik
B5: Wetterstation: Köttewitz | F5: Monat: | G5: Mai | K5: Jahr: | L5: 2014
A7: Dat. | B7: Nebeldauer | C7: Nebel | D7: Dunst | E7: Sicht | F7: Sicht | G7: Sicht | H7: Sicht
B8: in St. u. Min. | E8: mittel | F8: normal | G8: gut | H8: sehr gut
A9: 01. | B9: - | C9: - | D9: 1 | E9: 1 | F9: 1 | G9: - | H9: - | N9: =IF(ISNUMBER(B9),B9*24," ") ->  | O9: =IF(ISNUMBER(N9),IF(N9<1,1," ")," ") ->  | P9: =IF(ISNUMBER(N9),IF(N9<8,2," ")," ") ->  | Q9: =IF(ISNUMBER(N9),IF(N9<24,3," ")," ") ->  | R9: =MIN(O9:Q9) -> 0
A10: 02. | B10: - | C10: =IF(R10=1,1,"-") -> - | D10: 1 | E10: 1 | F10: - | G10: - | H10: - | R10: 0
A11: 03. | B11: - | C11: - | D11: 1 | E11: 1 | F11: 1 | G11: - | H11: - | R11: 0
A12: 04. | B12: - | C12: - | D12: - | E12: - | F12: 1 | G12: - | H12: - | R12: 0
A13: 05. | B13: - | C13: - | D13: - | E13: - | F13: 1 | G13: - | H13: - | R13: 0
A14: 06. | B14: - | C14: - | D14: - | E14: - | F14: 1 | G14: 1 | H14: - | R14: 0
A15: 07. | B15: - | C15: - | D15: - | E15: - | F15: 1 | G15: 1 | H15: - | R15: 0
A16: 08. | B16: - | C16: - | D16: - | E16: - | F16: 1 | G16: 1 | H16: - | R16: 0
A17: 09. | B17: - | C17: - | D17: - | E17: - | F17: 1 | G17: 1 | H17: - | R17: 0
A18: 10. | B18: - | C18: - | D18: - | E18: - | F18: 1 | G18: 1 | H18: - | R18: 0
A19: 11. | B19: - | C19: - | D19: - | E19: - | F19: 1 | G19: 1 | H19: 1 | R19: 0
A20: 12. | B20: - | C20: - | D20: - | E20: - | F20: 1 | G20: 1 | H20: 1 | R20: 0
A21: 13. | B21: - | C21: - | D21: - | E21: - | F21: 1 | G21: 1 | H21: - | R21: 0
A22: 14. | B22: - | C22: - | D22: - | E22: - | F22: 1 | G22: 1 | H22: - | R22: 0
A23: 15. | B23: - | C23: - | D23: - | E23: - | F23: 1 | G23: - | H23: - | R23: 0
A24: 16. | B24: - | C24: - | D24: - | E24: - | F24: 1 | G24: 1 | H24: 1 | R24: 0
A25: 17. | B25: - | C25: - | D25: 1 | E25: 1 | F25: 1 | G25: - | H25: - | R25: 0
A26: 18. | B26: - | C26: - | D26: 1 | E26: 1 | F26: 1 | G26: - | H26: - | R26: 0
A27: 19. | B27: - | C27: - | D27: - | E27: - | F27: 1 | G27: - | H27: - | R27: 0
A28: 20. | B28: - | C28: - | D28: - | E28: - | F28: 1 | G28: 1 | H28: - | R28: 0
A29: 21. | B29: - | C29: - | D29: - | E29: - | F29: 1 | G29: 1 | H29: - | R29: 0
A30: 22. | B30: - | C30: - | D30: - | E30: - | F30: 1 | G30: 1 | H30: - | R30: 0
A31: 23. | B31: - | C31: - | D31: - | E31: 1 | F31: 1 | G31: - | H31: - | R31: 0
A32: 24. | B32: - | C32: - | D32: - | E32: 1 | F32: 1 | G32: - | H32: - | R32: 0
A33: 25. | B33: - | C33: - | D33: - | E33: 1 | F33: 1 | G33: 1 | H33: - | R33: 0
A34: 26. | B34: - | C34: - | D34: - | E34: - | F34: 1 | G34: - | H34: - | R34: 0
A35: 27. | B35: - | C35: - | D35: 1 | E35: 1 | F35: 1 | G35: - | H35: - | R35: 0
A36: 28. | B36: - | C36: - | D36: 1 | E36: 1 | F36: - | G36: - | H36: -
A37: 29. | B37: - | C37: - | D37: 1 | E37: 1 | F37: - | G37: - | H37: -
A38: 30. | B38: - | C38: - | D38: - | E38: 1 | F38: 1 | G38: - | H38: -
A39: 31. | B39: - | C39: - | D39: - | E39: - | F39: 1 | G39: 1 | H39: -
A40: Su. | B40: =SUM(B9:B39) -> 00:00:00 | C40: 0 | D40: 8 | E40: 12 | F40: 28 | G40: 15 | H40: 3
B42: Anzahl der Nebeltage : | E42: =SUM(C40) -> 0
B43: Anzahl der Tage Sicht >= 50 km : | E43: =SUM(G40) -> 15

Sheet Monatsdiagramm
A1: Klimadiagramm | C1: Wetterstation Köttewitz | I1: (213 m ü. NHN)
A3: Mai 2014
C5: aktuell | D5: langj. Mittel | E5: Abw. vom lj. Mittel
B6: höchste Temperatur (°C): | C6: =MAX('Daten für Diagr.'!C2:C32) -> 27.9 | D6: am | E6: 2014-05-22
B7: mittlere Temperatur (°C): | C7: ='Daten für Diagr.'!B33 -> 12.82903226 | D7: =Kurztabelle!B48 -> 13.9 | E7: =C7-D7 -> -1.070967742 | F7: K
B8: tiefste Temperatur (°C): | C8: =MIN('Daten für Diagr.'!D2:D32) -> -0.1 | D8: am | E8: 2014-05-05
B9: Niederschlagshöhe (mm): | C9: =Kurztabelle!I43 -> 93.3 | D9: =Kurztabelle!B49 -> 65 | E9: =100/D9*C9 -> 143.5384615 | F9: %
B10: Sonnenscheindauer (Std.)*: | C10: =Kurztabelle!L43 -> 149.8 | D10: =Kurztabelle!B50 -> 217 | E10: =100/D10*C10 -> 69.03225806 | F10: %
A66: *Die Wetterstation kann, durch geographische Hindernisse, nicht die maximal mögliche Sonnenscheindauer aufzeichnen. Es gilt ein Übergangsprozentsatz von: Dez 30 %; Okt/Nov & Jan/Feb 40 %; Mär 65 %; Apr & Sep 80 %; Mai - August 90 %.
A67: Diese Werte entsprechend annähernd 100 % (Normalwert Köttewitz). Nach 10 Jahren erfolgt die Umstellung des Prozentsatzes nach der örtlichen Aufzeichnung.

Sheet Daten für Diagr.
B1: Td | C1: Tmax | D1: Tmin | E1: RR | F1: Schnee | G1: Sonne | H1: Luftdr. | I1: MWT | J1: GWL | K1: Name | L1: Sonstiges
A2: 2014-05-01 | B2: 12.1 | C2: 19.2 | D2: 6.6 | E2: 9.4 | G2: 5.2 | H2: 1010.3 | I2: 11.3 | J2: HNz | K2: H Reinhold | L2: Von 15:58 Uhr - 17:38 Uhr leichtes Gewitter mit Regen (WW 95). Von 16:18 Uhr - 17:47 Uhr starker Regenschauer (WW 81). Von 16:07 Uhr - 16:17 Uhr; 17:48 Uhr - 18:09 Uhr; 21:30 Uhr - 21:49 Uhr; 22:00 Uhr - 22:20 Uhr leichter Regenschauer (WW 80). Gegen 11 Uhr leichte Regentropfen (WW 60). Von 16:18 Uhr - 23:59 Uhr leichter Dunst (WW 10).
A3: 2014-05-02 | B3: 6.9 | C3: 10.4 | D3: 4 | E3: 1 | G3: 0 | H3: 1014.2 | I3: 11.5 | L3: Von 15:20 Uhr - 17:19 Uhr mäßiger Sprühregen (WW 54). Von 10:50 Uhr - 15:19 Uhr; 17:20 Uhr - 23:59 Uhr leichter Sprühregen (WW 52). Von 15:20 Uhr - 17:19 Uhr mäßiger Dunst (WW 10). Von 00:00 Uhr - 15:19 Uhr; 17:20 Uhr - 23:59 Uhr leichter Dunst (WW 10).
A4: 2014-05-03 | B4: 5.7 | C4: 8.8 | D4: 2.4 | G4: 0.4 | H4: 1021.4 | I4: 11.7 | J4: NWa | L4: Von 00:00 Uhr - 03:29 Uhr leichter Sprühregen (WW 52). Von 00:00 Uhr - 03:39 Uhr leichter Dunst (WW 10).
A5: 2014-05-04 | B5: 6 | C5: 11.3 | D5: 0.9 | G5: 4.6 | H5: 1022.5 | I5: 11.9
A6: 2014-05-05 | B6: 7.2 | C6: 13.9 | D6: -0.1 | G6: 3.7 | H6: 1020.1 | I6: 12.1 | J6: Wa
A7: 2014-05-06 | B7: 13.2 | C7: 18.9 | D7: 3 | E7: 0.5 | G7: 6.2 | H7: 1014 | I7: 12.3 | J7: Wz | K7: T Vicky | L7: Von 21:00 Uhr - 21:39 Uhr leichtes Gewitter (WW 95). Von 21:00 Uhr - 21:29 Uhr mäßiger Regenschauer (WW 81). Gegen 13 Uhr Halo.
A8: 2014-05-07 | B8: 13.4 | C8: 17.3 | D8: 7.1 | E8: 4.4 | G8: 1.3 | H8: 1010.4 | I8: 12.5 | L8: Von 08:30 Uhr - 08:59 Uhr; 15:00 Uhr - 15:29 Uhr starker Regenschauer (WW 81). Von 15:30 Uhr - 15:49 Uhr leichter Regenschauer (WW 80).
A9: 2014-05-08 | B9: 13.4 | C9: 18.7 | D9: 6.8 | E9: 2.2 | G9: 5.2 | H9: 1013.4 | I9: 12.65 | L9: Gegen 09:30 Uhr; 21:30 Uhr leichter Regenschauer (WW 80).
A10: 2014-05-09 | B10: 15.3 | C10: 20.7 | D10: 11.5 | E10: 3.9 | G10: 3.3 | H10: 1010.7 | I10: 12.85 | K10: T Waldegund | L10: Von 15:03 Uhr - 15:16 Uhr leichtes Gewitter mit Regen (WW 95). Von 01:40 Uhr und 04:59 Uhr; 20:10 Uhr - 20:29 Uhr; 23:40 Uhr - 23:59 Uhr mäßiger Regenschauer (WW 81). Von 15:07 Uhr - 15:29 Uhr leichter Regenschauer (WW 80).
A11: 2014-05-10 | B11: 13.1 | C11: 19.1 | D11: 7.9 | E11: 2.3 | G11: 7.6 | H11: 1012 | I11: 13 | L11: Von 00:00 Uhr - 00:29 Uhr starker Regenschauer (WW 81). Von 00:30 Uhr - 00:39 Uhr; 22:40 Uhr - 23:49 Uhr mäßiger Regenschauer (WW 80). Von 00:40 Uhr - 00:49 Uhr; 19:10 Uhr - 19:29 Uhr leichter Regenschauer (WW 80).
A12: 2014-05-11 | B12: 12.3 | C12: 17 | D12: 8.4 | E12: 0.8 | G12: 5.7 | H12: 1005 | I12: 13.2 | K12: T Xena | L12: Gegen 03:00 Uhr; 15:00 Uhr; 19:30 Uhr leichter Regenschauer (WW 80).
A13: 2014-05-12 | B13: 11.6 | C13: 16.2 | D13: 8.5 | E13: 0.8 | G13: 4.3 | H13: 1009 | I13: 13.35 | J13: TrM | L13: Gegen 02:00 Uhr leichter Regenschauer (WW 80).
A14: 2014-05-13 | B14: 10.1 | C14: 14.3 | D14: 7.4 | E14: 1.8 | G14: 2.3 | H14: 1013.5 | I14: 13.5 | L14: Gegen 18:20 Uhr mäßiger Regenschauer (WW 81). Gegen 09:00 Uhr; 11:40 Uhr; 13:30 Uhr leichter Regenschauer (WW 80).
A15: 2014-05-14 | B15: 8.9 | C15: 11.9 | D15: 6.7 | E15: 1 | G15: 2.9 | H15: 1023 | I15: 13.65 | J15: Nz | K15: T Xena 1 | L15: Gegen 11:40 Uhr; 13:40 Uhr; 15:40 Uhr leichter Regenschauer (WW 80).
A16: 2014-05-15 | B16: 9.3 | C16: 13.2 | D16: 6.4 | E16: 1 | G16: 1 | H16: 1028.9 | I16: 13.8 | J16: NEz | K16: H Steffen 2 | L16: Von 14:20 Uhr - 14:49 Uhr mäßiger Regenschauer (WW 81). Gegen 07:00 Uhr; 11:30 Uhr leichter Regenschauer (WW 80).
A17: 2014-05-16 | B17: 11.5 | C17: 16.3 | D17: 5.8 | E17: 0.1 | G17: 2 | H17: 1025.8 | I17: 13.95
A18: 2014-05-17 | B18: 10.9 | C18: 14.9 | D18: 9.1 | E18: 14.9 | G18: 0 | H18: 1018.7 | I18: 14.1 | K18: T Yvette | L18: Von 07:03 Uhr - 07:05 Uhr; 07:22 Uhr - 07:29 Uhr leichter Regenschauer (WW 80). Von 08:00 Uhr - 09:19 Uhr Sprühregen, nicht näher beschrieben. Von 20:10 Uhr - 20:29 Uhr starker Regen (WW 65). Von 19:10 Uhr - 20:09 Uhr; 20:30 Uhr - 20:39 Uhr mäßger Regen (WW 63). Von 18:00 Uhr - 18:39 Uhr; 20:40 Uhr - 21:09 Uhr leichter Regen (WW 61)
A19: 2014-05-18 | B19: 9.8 | C19: 11.5 | D19: 8.3 | E19: 3.4 | G19: 0 | H19: 1013.2 | I19: 14.25 | J19: TM | L19: Von 05:20 Uhr - 06:59 Uhr starker Regen (WW 65). Von 05:10 Uhr - 05:19 Uhr; 07:00 Uhr - 08:19 Uhr mäßiger Regen (WW 63). Von 05:10 Uhr - 08:19 Uhr Sichteinschränkung durch Niederschlag.
A20: 2014-05-19 | B20: 14.4 | C20: 22.2 | D20: 9.3 | E20: 0.3 | G20: 4.1 | H20: 1011.8 | I20: 14.4 | J20: Sz | L20: Beginn der Himbeerblüte.Von 16:29 Uhr - 16:33 Uhr leichtes Gewitter mit Regen (WW 95). Von 16:25 Uhr - 16:59 Uhr leichter Regen (WW 61). Zwischen 02:10 Uhr und 04:39 Uhr leichter Regen nicht weiter definiert.
A21: 2014-05-20 | B21: 19.1 | C21: 27.5 | D21: 11 | G21: 12 | H21: 1014.1 | I21: 14.55 | J21: Sa | K21: H This | L21: Beginn des phänologischen Frühsommers. | P21: Mäßig schwül.
A22: 2014-05-21 | B22: 19.5 | C22: 26.6 | D22: 10.7 | G22: 12.8 | H22: 1014.8 | I22: 14.65 | L22: Beginn der Mohnblüte. Leicht schwül.
A23: 2014-05-22 | B23: 21.6 | C23: 27.9 | D23: 14.3 | G23: 12.9 | H23: 1009.7 | I23: 14.8 | L23: Mäßig schwül.
A24: 2014-05-23 | B24: 19.1 | C24: 27.5 | D24: 15.2 | E24: 2.5 | G24: 8.7 | H24: 1008.9 | I24: 14.9 | J24: Sz | K24: T Zeynep | L24: Von 14:15 Uhr - 14:59 Uhr; Zwischen 16:00 - 16:59 Uhr leichtes Gewitter mit Niederschlag (WW 95). Von 14:40 Uhr - 14:49 Uhr; 15:30 Uhr - 18:15 Uhr leichter Regenschauer (WW 80). Stark schwül.
A25: 2014-05-24 | B25: 15 | C25: 20.7 | D25: 9.9 | E25: 12.1 | G25: 1.6 | H25: 1014.1 | I25: 15.05 | L25: Von 15:47 Uhr - 16:10 Uhr; 16:18 Uhr - 16:24 Uhr; 16:36 Uhr- 16:42 Uhr; 17:01 Uhr - 17:03 Uhr leichtes Gewitter mit Regen (WW 95). Von 15:36 Uhr - 16:12 Uhr starker Regenschauer (WW 81). Von 13:03 Uhr - 13:35 Uhr; 16:13 Uhr- 16:19 Uhr leichter Regenschauer (WW 80). Mäßig schwül.
A26: 2014-05-25 | B26: 16.6 | C26: 22.7 | D26: 8.9 | G26: 13 | H26: 1015 | I26: 15.15 | J26: SWa | K26: H Urs
A27: 2014-05-26 | B27: 17.7 | C27: 23.2 | D27: 10.9 | G27: 9.3 | H27: 1015.9 | I27: 15.25 | J27: U | K27: T Annetraud | L27: Leicht schwül.
A28: 2014-05-27 | B28: 17.1 | C28: 23.6 | D28: 15 | E28: 20.1 | G28: 2.1 | H28: 1007.9 | I28: 15.35 | J28: TM | L28: 16:34 Uhr: Regenrate: 137 L/h. Von 16:16 Uhr - 16:52 Uhr leichtes Gewitter mit Regen (WW 95). Von 16:53 Uhr - 17:33 Uhr mäßiger Regen (WW 63). Von 16:34 Uhr - 18:19 Uhr; 20:34 Uhr - 21:25 Uhr leichter Regen (WW61). Von 16:00 Uhr - 16:15 Uhr leichter unregelmäßiger Regen (WW 60). 12:01 Uhr:; 14:35 Uhr - 16:01 Uhr; 16:13 Uhr - 16:15 Uhr Gewitter in der Ferne (WW 17). Mäßig schwül.
A29: 2014-05-28 | B29: 13.2 | C29: 15.6 | D29: 10.7 | E29: 3.9 | G29: 0 | H29: 1008.2 | I29: 15.45 | L29: Von 00:50 Uhr - 01:29 Uhr starker Regenschauer (WW 81). Von 01:30 Uhr - 01:39 Uhr; 03:10 Uhr - 03:29 Uhr; 04:10 Uhr - 04:59 Uhr; 05:30 Uhr - 05:49 Uhr; 07:20 Uhr - 07:39 Uhr; 08:20 Uhr - 09:09 Uhr leichter Regen (WW 61). Von 09:10 Uhr - 16:09 Uhr. Zwischen 21:00 Uhr und 23:00 Uhr leichter Regen und Sprühregen (WW 58). Leicht schwül.
A30: 2014-05-29 | B30: 8.4 | C30: 10.7 | D30: 7.7 | E30: 4 | G30: 0 | H30: 1015.7 | I30: 15.55 | J30: NEz | L30: Zwischen 14:00 Uhr - 15:14 Uhr starker Sprühregen (WW 55). Gegen 02:30 Uhr; 04:00 Uhr - 06:00 Uhr; 10:00 Uhr - 12:00 Uhr leichter Sprühregen (WW 51).
A31: 2014-05-30 | B31: 10.8 | C31: 17.1 | D31: 7.4 | E31: 2.9 | G31: 4.7 | H31: 1020.5 | I31: 15.65 | L31: Von 16:20 Uhr - 16:59 Uhr mäßiger Regenschauer (WW 81).
A32: 2014-05-31 | B32: 14.5 | C32: 20.1 | D32: 7.4 | G32: 12.9 | H32: 1020.1 | I32: 15.75 | J32: Na | K32: H Vinko 2
A33: Durchschnitt | B33: =AVERAGE(B2:B32) -> 12.82903226 | C33: =AVERAGE(C2:C32) -> 18.03225806 | D33: 8.035483871 | E33: - | G33: =AVERAGE(G2:G32) -> 4.832258065 | H33: =AVERAGE(H2:H32) -> 1014.929032 | I33: =AVERAGE(I2:I32) -> 13.80967742
A34: Mittel | B34: 13.9 | E34: 65 | F34: - | G34: 221 | H34: 1015.4
A90: 1
A91: 2
A92: 3
A93: 4
A94: 5
A95: 6
A96: 7
A97: 8
A98: 9
A99: 10
A100: 11
A101: 12
A102: 13
A103: 14
A104: 15
A105: 16
A106: 17
A107: 18
A108: 19
A109: 20
A110: 21
A111: 22
A112: 23
A113: 24
A114: 25
A115: 26
A116: 27
A117: 28
A118: 29
A119: 30
A120: 31

Sheet Erdbodentem.
E1: Erdbodentemperatur
B5: Wetterstation: Köttewitz | F5: Monat: | G5: Mai | K5: Jahr: | L5: 2014
A7: Dat. | B7: 6 Uhr | C7: 7 Uhr | D7: 11 Uh | E7: 12 Uhr | F7: 19 Uhr | H7: NN | I7: 10 °C -
I8: Eindringtiefe
A9: 01. | B9: - | D9: - | F9: 16,9 °C/16,9 °C/14,2 °C | H9: n | I9: > 1 m
A10: 02. | B10: 13,6 °C/13,9 °C/14,4 °C | D10: - | F10: 11,6 °C/12,6 °C/12,6 °C | H10: t | I10: > 1 m
A11: 03. | B11: - | D11: - | F11: 11,2 °C/11,4 °C/12,6 °C | H11: t | I11: > 1 m
A12: 04. | B12: 6,2 °C/8,7 °C/12,3 °C | D12: - | F12: 12,9 °C/12,2 °C/11,6 °C | H12: n | I12: Ab 41 cm
A13: 05. | B13: 7,0 °C/9,3 °C/11,8 °C | D13: - | F13: 15,2 °C/14,3 °C/11,6 °C | H13: n | I13: Ab 39 cm
A14: 06. | B14: 8,0 °C/10,0 °C/11,9 °C | D14: - | F14: - | H14: n | I14: Ab 20 cm
A15: 07. | B15: 12,5 °C/13,2 °C/12,5 °C | D15: - | F15: 16,0 °C/14,8 °C/12,6 °C | H15: n | I15: > 1 m
A16: 08. | B16: 11,0 °C/12,0 °C/12,8 °C | D16: 16,0 °C/13,0 °C/12,6 °C | F16: - | H16: n | I16: > 1 m
A17: 09. | B17: 13,0 °C/13,5 °C/14,3 °C | D17: - | F17: - | H17: t | I17: > 1 m
A18: 10. | B18: 11,1 °C/13,2 °C/13,7 °C | D18: - | F18: 18,0 °C/17,4 °C/14,6 °C | H18: n | I18: > 1 m
A19: 11. | B19: 12,3 °C/14,3 °C/14,2 °C | D19: - | F19: - | H19: n | I19: > 1 m
A20: 12. | B20: 11,3 °C/13,6 °C/14,3 °C | D20: - | F20: - | H20: n | I20: > 1 m
A21: 13. | B21: 11,9 °C/13,9 °C/14,2 °C | D21: - | F21: 16,3 °C/15,5 °C/13,6 °C | H21: t | I21: > 1 m
A22: 14. | B22: 11,1 °C/12,7 °C/13,6 °C | D22: - | F22: 15,2 °C/13,6 °C/13,2 °C | H22: n | I22: > 1 m
A23: 15. | B23: 10,9 °C/12,0 °C/13,5 °C | D23: - | F23: 14,5 °C/14,0 °C/13,6 °C | H23: n | I23: > 1 m
A24: 16. | B24: 10,4 °C/11,8 °C/13,3 °C | D24: - | F24: 15,5 °C/14,9 °C/13,3 °C | H24: t | I24: > 1 m
A25: 17. | B25: - | D25: - | F25: - | H25: - | I25: > 1 m
A26: 18. | B26: 11,0 °C/11,0 °C/13,2 °C | D26: - | F26: 13,2 °C/13,0 °C/13,0 °C | H26: t | I26: > 1 m
A27: 19. | B27: 12,0 °C/11,9 °C/13,9 °C | D27: - | F27: 19,6 °C/17,1 °C/14,2 °C | H27: n | I27: > 1 m
A28: 20. | B28: 12,4 °C/13,7 °C/14,2 °C | D28: - | F28: - | H28: h | I28: > 1 m
A29: 21. | B29: 14,0 °C/15,5 °C/14,8 °C | D29: - | F29: - | H29: n | I29: > 1 m
A30: 22. | B30: 15,8 °C/17,0 °C/15,9 °C | D30: - | F30: 26,2 °C/23,6 °C/16,2 °C | H30: n | I30: > 1 m
A31: 23. | B31: - | D31: - | F31: - | H31: - | I31: > 1 m
A32: 24. | B32: - | D32: - | F32: - | H32: - | I32: > 1 m
A33: 25. | B33: 14,1 °C/15,6 °C/16,7 °C | D33: - | F33: 23,0 °C/20,9 °C/16,5 °C | H33: n | I33: > 1 m
A34: 26. | B34: - | D34: - | F34: 22,2 °C/21,4 °C/17,0 °C | H34: n | I34: > 1 m
A35: 27. | B35: - | D35: - | F35: 19,9 °C/20,2 °C/17,2 °C | H35: t | I35: > 1 m
A36: 28. | B36: - | D36: - | F36: 17,1 °C/17,2 °C/17,6 °C | H36: t | I36: > 1 m
A37: 29. | B37: - | D37: - | F37: - | H37: - | I37: > 1 m
A38: 30. | B38: 13,2 °C/14,0 °C/14,6 °C | D38: - | F38: - | H38: t | I38: > 1 m
A39: 31. | B39: - | D39: - | F39: 22,0 °C/19,4 °C/20,3 °C | H39: n | I39: > 1 m
B41: Temperatur - 10 cm/Temperatur - 20 cm/Temperatur -50 cm
